Workbook

Sheet CUIC
A1: CUIC Bandwidth Calculator
A2: Release 12.6(1)
A4: Note: Only make changes to fields in yellow.
A7: Customer Site Information | B7: Value | C7: Units | D7: Comments
A8: Call Center Information
A9: Total Number of Agents | B9: 1800 | C9: agent(s) | D9: 2000 maximum
A10: Number of Supervisors | B10: 200 | C10: supervisor(s) | D10: Typically 10% of capacity
A11: Number of Historical Reports in CUIC report viewer | B11: 2 | C11: Number of reports | D11: This count includes report execution for the user through permalinks and dashboards also.
A12: Number of Real Time Reports in CUIC report viewer | B12: 2 | C12: Number of reports
A13: Number of LiveData Reports in CUIC report viewer | B13: 2 | C13: Number of reports
A14: Number of LiveData Reports in Finesse Gadget | B14: 2 | C14: Number of reports
A15: Number of Historical Report rows | B15: 2000 | C15: Number of rows
A16: Number of Real time Repot rows | B16: 100 | C16: Number of rows
A17: Number of Historical Report Columns | B17: 20 | C17: Number of columns
A18: Number of Realtime Report Columns | B18: 20 | C18: Number of columns
A20: Maximum Login Time for all Supervisors in CUIC interface | B20: 2 | C20: Minute(s)
A21: Maximum Login Time for all Agents in Finesse desktop | B21: 5 | C21: minute(s) | D21: The total amount of time it should take for all agents to log into the Agent desktop. If the deployment includes 2000 agents and this value is set to 5 minutes, all 2000 agents should be able to point their browser to Finesse and complete the login sequence within 5 minutes.
A23: CUIC Client Interface to CUIC server Bandwidth
A24: Total Bandwidth - No Caching | B24: =FIXED((('BW Data'!B12+'BW Data'!B13+'BW Data'!B14)*1.3+(LD_Reports+RT_Reports+HT_Reports)*'BW Data'!B20*1.3+(RT_Report_Columns*RT_Report_Rows)*'BW Data'!B22*RT_Reports*1.3+(HT_Report_Columns*HT_Report_Rows)*'BW Data'!B22*HT_Reports*1.3)*SuperVisors/(Supervisor_Login_Timee*60)) -> 26,885.90 | C24: KBPS
A25: Total Bandwidth - Caching | B25: =FIXED((('BW Data'!B16+'BW Data'!B17+'BW Data'!B18)*1.3+(LD_Reports+RT_Reports+HT_Reports)*'BW Data'!B20*1.3+(RT_Report_Columns*RT_Report_Rows)*'BW Data'!B22*RT_Reports*1.3+(HT_Report_Columns*HT_Report_Rows)*'BW Data'!B22*HT_Reports*1.3)*SuperVisors/(Supervisor_Login_Timee*60)) -> 20,164.69 | C25: KBPS
A26: Bandwidth to sustain Reports in CUIC | B26: =FIXED((((RT_Report_Columns*RT_Report_Rows)*'BW Data'!B22*1.3+ 'BW Data'!B19*1.3)*RT_Reports*1.3+((HT_Report_Columns*HT_Report_Rows)*'BW Data'!B22*1.3 + 'BW Data'!B19*1.3 )*HT_Reports)*SuperVisors) -> 1,09,958.06 | C26: KBPS
A28: Agent desktop Client to CUIC server Bandwidth
A29: Agent desktop Client to server Bandwidth - No caching | B29: =FIXED(('BW Data'!B5*1.3+(LD_Reports-1)*'BW Data'!B7*1.3)*Agents/(Agents_Login_Timee*60)) -> 23,165.85 | C29: KBPS
A30: Agent desktop Client to server Bandwidth - Caching | B30: =FIXED(('BW Data'!B6*1.3+(LD_Reports-1)*'BW Data'!B7*1.3)*Agents/(Agents_Login_Timee*60)) -> 5,695.23 | C30: KBPS
A32: CUIC Server to AWDB Bandwidth
A33: CUIC Server to AWDB Bandwidth | B33: =FIXED((RT_Report_Rows*HT_Report_Columns*4*'BW Data'!B23*1.3)+(HT_Report_Rows*HT_Report_Columns*4*'BW Data'!B23*1.3)*SuperVisors) -> 2,72,255.55 | C33: KBPS

Sheet LiveData
A1: LiveData Bandwidth Calculator
A2: =CUIC!A2 -> Release 12.6(1)
A4: Note: Only make changes to fields in yellow.
A7: Customer Site Information | B7: Value | C7: Units | D7: Comments
A8: Call Center Information
A9: Total Number of Agents | B9: 2000 | C9: agent(s) | D9: 2000 maximum
A10: Number of LiveData Reports in Finesse Gadget | B10: 2 | C10: Number of reports
A11: Number of LiveData Report rows | B11: 20 | C11: Number of rows
A13: Calls per Second | B13: 15 | C13: Calls per second
A14: Maximum Login Time for all Agents in Finesse desktop | B14: 5 | C14: minute(s) | D14: The total amount of time it should take for all agents to log into the Finesse server including Finesse failover conditions. If the deployment includes 2000 agents and this value is set to 5 minutes, all 2000 agents should be able to point their browser to Finesse and complete the login sequence within 5 minutes.
A16: Agent Desktop Client to LiveData server Bandwidth
A18: Total Bandwidth required for Login | B18: =FIXED(('BW Data'!B28*1.3+(LD_LD_Reports-1)*'BW Data'!B29*1.3 + 'BW Data'!B30*LD_LD_Rows*1.3)*LD_Agent_Count/(LD_Login_Time*60)) -> 203.15 | C18: KBPS
A19: Bandwidth required to sustain gadgets | B19: =FIXED(('BW Data'!B31*1.3*LD_LD_Rows)*LD_LD_Reports*LD_Agent_Count) -> 23,192.00 | C19: KBPS
A21: LiveData Server to PG server Bandwidth
A22: Total Bandwidth required to sustain | B22: =FIXED(LD_Calls_Per_Second*('BW Data'!B32*1.3*8+'BW Data'!B33*1.3)+2*('BW Data'!B34*1.3+'BW Data'!B35*1.3)) -> 604.12 | C22: KBPS
A24: LiveData Server Side A to Side B server Bandwidth
A25: Total Bandwidth required | B25: =FIXED(('BW Data'!B31*1.3*LD_LD_Rows)*LD_LD_Reports*LD_Agent_Count) -> 23,192.00 | C25: KBPS
A27: LiveData Server Bandwidth requirement on Service startup
A28: Total Bandwidth required | B28: =FIXED('BW Data'!B36*LD_Agent_Count*1.3) -> 14,645.31 | C28: KBPS

Sheet BW Data
A2: CUIC Bandwidth Measurements
B3: Size in KB
A4: Agent Desktop
A5: Download Size - No Browser Cache | B5: =2833055/1024 -> 2766.655273
A6: Download Size - Browser Cache | B6: =539477/1024 -> 526.8330078
A7: Data Downloaded for Second Gadget | B7: =208205/1024 -> 203.3251953
A11: CUIC
A12: Pre-login size No Cache | B12: =1462981/1024 -> 1428.692383
A13: Post Login No Cache | B13: =10638355/1024 -> 10389.01855
A14: Report Exec No Cache | B14: =43540/1024 -> 42.51953125
A16: Pre-login size - Cached | B16: =1337243/1024 -> 1305.901367
A17: Post Login - Cached | B17: =7592758/1024 -> 7414.802734
A18: Report Exec - Cached | B18: =38328/1024 -> 37.4296875
A19: Report Auto Refresh | B19: 1.5
A20: Data for second report No Cache | B20: =23636/1024 -> 23.08203125
A22: Approx. Cell Size | B22: =5/1024 -> 0.0048828125
A23: Approx. Cell Size for queries from CUIC Server to AWDB | B23: =6.7/1024 -> 0.00654296875
A25: LiveData Bandwidth Measurements
B26: Size in KB
A27: Agent Desktop
A28: WebService download for 1 Gadget | B28: 7
A29: Additional Data for next gadget | B29: 3.5
A30: Snapshot message for one row | B30: =0.647 -> 0.647
A31: Update message for each row | B31: =0.223 -> 0.223
A32: Agent State Event message size | B32: 3.79
A33: TCD Message size | B33: =636/1024 -> 0.62109375
A34: Heartbeat Request Size | B34: =103/1024 -> 0.1005859375
A35: Timer Report Event | B35: =198/1024 -> 0.193359375
A36: Agent Snapshot Message from PG | B36: =5768/1024 -> 5.6328125
